Cogmind - Beta 15 @@@ ROGUE MODE // 2025.05.11 @ 23:30:25 Player: FloorSandwich Result: Self-destructed Performance ------------- Evolutions (1) 500 Regions Visited (2) 400 Robots Destroyed (12) 60 Value Destroyed (332) 332 Prototype IDs (0) 0 Alien Tech Used (0) 0 Bonus (0) 0 TOTAL SCORE: 1292 Bonus ------- None Cogmind --------- Core Integrity 82/400 Matter 300/300 Energy 125/125 System Corruption 0% Temperature Cool (0) Movement Walking (190) Ox1 Location -9/Materials Parts ------- > --- POWER (1) -------- Light Ion Engine > --- PROPULSION (2) --- Aluminum Leg > --- UTILITY (4) ------ Small Storage Unit Transport Network Coupler > --- WEAPON (2) ------- Medium Laser Heavy Hammer > --- INVENTORY (8) ---- (None) Peak State ------------ > --- POWER ------------ Light Ion Engine > --- PROPULSION ------- Wheel Compact Wheel > --- UTILITY ---------- Small Storage Unit Transport Network Coupler > --- WEAPON ----------- Medium Laser Assault Rifle > --- INVENTORY -------- Light Ion Engine Light Ion Engine Grenade Launcher [Rating: 7] Favorites ----------- Power Light Ion Engine Engine Light Ion Engine Propulsion Aluminum Leg Leg Aluminum Leg Wheel Wheel Utility Small Storage Unit Storage Small Storage Unit Processor Transport Network Coupler Protection Light Armor Plating Weapon Medium Laser Energy Gun Medium Laser Ballistic Gun Assault Rifle Launcher Grenade Launcher Impact Weapon Heavy Hammer Build | -11 -10 -9 ------- Run | Yrd Mat Mat Slots Evolved 2 | . . 2 Power . | . . . Propulsion . | . . . Utility 2 | . . 2 Weapon . | . . . Parts Attached 15 | 6 1 8 Power 3 | 1 . 2 Engine 3 | 1 . 2 Core . | . . . Reactor . | . . . Propulsion 5 | 2 . 3 Treads . | . . . Leg 3 | . . 3 Wheel 2 | 2 . . Hover . | . . . Flight . | . . . Utility 3 | 1 1 1 Device . | . . . Storage 1 | 1 . . Processor 1 | . 1 . Hackware . | . . . Protection 1 | . . 1 Artifact . | . . . Weapon 4 | 2 . 2 Energy Gun 1 | 1 . . Energy Cannon . | . . . Ballistic Gun 1 | 1 . . Ballistic Cannon . | . . . Launcher 1 | . . 1 Special Weapon . | . . . Impact Weapon 1 | . . 1 Slashing Weapon . | . . . Piercing Weapon . | . . . Special Melee Weapon . | . . . Unidentified Prototypes . | . . . Parts Lost 9 | . . 9 Power 2 | . . 2 Propulsion 4 | . . 4 Utility 1 | . . 1 Weapon 2 | . . 2 Highest Loss Streak 4 | . . 4 To Critical Strikes . | . . . Average Backups 1 | 1 2 1 Power 1 | 1 2 . Propulsion . | . . . Utility . | . . . Weapon . | . . . Tool/Special . | . . . Unused Backups 1 | 1 . . Power . | . . . Propulsion . | . . . Utility . | . . . Weapon 1 | 1 . . Tool/Special . | . . . Average Slot Usage (%) 68 | . 86 63 Engine 10 | . 14 9 Leg 8 | . . 10 Wheel 7 | . 28 2 Storage 11 | . 14 11 Processor 9 | . 1 11 Protection 2 | . . 2 Energy Gun 10 | . 14 10 Ballistic Gun 3 | . 14 1 Impact Weapon 4 | . . 5 Peak Build Rating 7 | 6 7 7 Average Rating 6 | 4 6 6 On Entrance 4 | . 6 7 Naked Turns . | . . . Heaviest Build 13 | 12 12 13 Greatest Support 26 | 26 26 26 Greatest Overweight (x) 4 | . . 4 Average Overweight (x) . | . . . Largest Inventory Capacity 8 | 8 8 8 Average Capacity 7 | 6 8 8 Most Carried 4 | 3 4 4 Average Carried 1 | 1 2 1 Final Capacity 8 | 8 8 8 Final Carried 3 | 2 3 . Class Distribution -------------------- 71% | Mutant 28% | Scavenger-Mutant Dominant Class ---------------- Mutant | -10/Materials Mutant | -9/Materials Resources | -11 -10 -9 ----------- Run | Yrd Mat Mat Matter Collected 434 | 225 43 166 Remotely . | . . . Salvage Created 421 | 79 43 299 Parts 16 | 3 2 11 Haulers Intercepted 1 | . 1 . Recyclers Shooed 1 | . . 1 Parts Field Recycled . | . . . Retrieved Matter . | . . . Parts Self-Destructed . | . . . Prevented . | . . . Kills | -11 -10 -9 ------- Run | Yrd Mat Mat Combat Hostiles Destroyed 8 | . . 8 Guns 3 | . . 3 AOE 3 | . . 3 Classes Destroyed 6 | 1 1 4 Worker 1 | . . 1 Hauler 1 | . 1 . Recycler 1 | 1 . . Operator 1 | . . 1 Grunt 6 | . . 6 Sentry 2 | . . 2 Best Kill Streak 5 | 1 1 5 Combat Bots Only 3 | . . 3 Max Kills in Single Turn 3 | 1 1 3 Gunslinging . | . . . Exploded 1 | . . 1 Melee . | . . . Uniques/NPCs Destroyed . | . . . Combat | -11 -10 -9 -------- Run | Yrd Mat Mat Hostile Shots Fired 107 | . . 107 Missed 23 | . . 23 Hits 84 | . . 84 Projectile 84 | . . 84 Critical Strikes 2 | . . 2 Damage Taken 1110 | . . 1110 Core 318 | . . 318 Absorbed by Shields . | . . . Regen/Repaired (Parts) 52 | . . 52 Core Remaining (%) 100 | 100 100 . Volleys Fired 38 | 1 6 31 Largest 2 | 2 2 2 Hottest 80 | 70 70 80 Shots Fired 59 | 2 12 45 Gun 54 | 2 12 40 Cannon . | . . . Launcher 5 | . . 5 Special . | . . . Kinetic 16 | 1 6 9 Thermal 38 | 1 6 31 Explosive 5 | . . 5 Electromagnetic . | . . . Robot Hit Streak 7 | 1 3 7 Robot Miss Streak 3 | . 3 3 Penetration Max . | . . . Secondary Targets . | . . . Shots Hit Robots 47 | 1 6 40 Core Hits 22 | 1 2 19 Critical Kills . | . . . Critical Parts Destroyed 2 | . . 2 Critical Strikes 3 | . . 3 Burn 1 | . . 1 Smash 2 | . . 2 Melee Attacks 14 | . . 14 Impact 14 | . . 14 Slashing . | . . . Piercing . | . . . Sneak Attacks . | . . . Combat Hostiles . | . . . Follow-up Attacks . | . . . Damage Inflicted 1046 | 15 76 955 Guns 414 | 15 76 323 Cannons . | . . . Explosions 279 | . . 279 Melee 345 | . . 345 Ramming 8 | . . 8 Kinetic 114 | 15 12 87 Thermal 300 | . 64 236 Explosive 279 | . . 279 Electromagnetic . | . . . Impact 345 | . . 345 Slashing . | . . . Piercing . | . . . Highest Corruption . | . . . Average Corruption . | . . . Corruption Purged . | . . . Corruption Blocked . | . . . Overload Shots . | . . . Overflow Damage 83 | . . 83 Projectiles . | . . . Explosions 6 | . . 6 Melee 77 | . . 77 Knockbacks . | . . . Impact . | . . . Kinetic . | . . . Secondary . | . . . Self-Inflicted Damage 63 | . . 63 Shots 3 | . . 3 Rammed 1 | 1 . . Targets Rammed 2 | 1 . 1 Kicked 1 | . . 1 Crushed . | . . . Highest Temperature 168 | . 18 168 Average Temperature 48 | . 9 57 Received Heat Transfer 525 | . . 525 Siege Activations . | . . . Martial Activations . | . . . Shielding Activations . | . . . Robots Disrupted . | . . . Combat Hostiles . | . . . Robots Corrupted 2 | . . 2 Combat Hostiles 2 | . . 2 Parts Fried . | . . . Impact Corruptions 3 | . . 3 Robots Melted . | . . . Combat Hostiles . | . . . Parts Melted 3 | . . 3 Heat Transferred 962 | . 185 777 Parts Sabotaged . | . . . Parts Stolen . | . . . Parts Stripped . | . . . Power Chain Reactions . | . . . Alert | -11 -10 -9 ------- Run | Yrd Mat Mat Maximum Alert Level . | . . . Low Security (%) 100 | 100 100 100 Level 1 . | . . . Level 2 . | . . . Level 3 . | . . . Level 4 . | . . . Level 5 . | . . . High Security . | . . . Max Security . | . . . Peak Influence 72 | 5 7 72 Initial . | . . . Average 12 | . . 16 Influence Increases 282 | 5 7 270 Destroy 0b10 Robot/C 160 | . . 160 Destroy 0b10 Robot/NC 20 | 5 5 10 Destroy Leader 62 | . 2 60 Destroy Structure 40 | . . 40 Influence Decreases 282 | 5 7 270 Time Decay 242 | 5 7 230 Lost Part 40 | . . 40 Squads Dispatched 4 | . . 4 Investigation 1 | . . 1 Extermination . | . . . Reinforcement 3 | . . 3 Assault . | . . . Garrison . | . . . Intercept . | . . . Searches Triggered . | . . . Construction Impeded 1 | . . 1 Haulers Reinforced . | . . . Active Scanning Responses . | . . . Cargo Convoy Interrupts . | . . . Stealth | -11 -10 -9 --------- Run | Yrd Mat Mat Distress Signals . | . . . Communications Jammed . | . . . Distress Signals . | . . . Times Spotted 15 | . . 15 Peak Tracking Total 6 | . . 6 Tactical Retreats . | . . . Traps | -11 -10 -9 ------- Run | Yrd Mat Mat Traps Triggered . | . . . Indirectly . | . . . Trap Hack Attempts . | . . . Triggered . | . . . Disarmed . | . . . Reprogrammed . | . . . Reused . | . . . Traps Extracted . | . . . Installed . | . . . Triggered . | . . . Machines | -11 -10 -9 ---------- Run | Yrd Mat Mat Machines Disabled . | . . . Max in Single Turn . | . . . Machines Repaired . | . . . Machines Dismantled . | . . . Machines Sabotaged . | . . . Overloaded Fab Kills . | . . . Hacking | -11 -10 -9 --------- Run | Yrd Mat Mat Machines Accessed 1 | . . 1 Terminals . | . . . Fabricators . | . . . Repair Stations 1 | . . 1 Recycling Units . | . . . Scanalyzers . | . . . Garrison Access . | . . . Total Hacks 3 | . . 3 Successful 3 | . . 3 Failed . | . . . Catastrophic . | . . . Database Lockouts . | . . . Manual . | . . . Terminals . | . . . Fabricators . | . . . Repair Stations 3 | . . 3 Recycling Units . | . . . Scanalyzers . | . . . Garrison Access . | . . . Terminal Hacks . | . . . Fabricator Hacks . | . . . Repair Station Hacks 3 | . . 3 Scan Component 2 | . . 2 Repair 1 | . . 1 Recycling Unit Hacks . | . . . Scanalyzer . | . . . Garrison Access Hacks . | . . . Unauthorized Hacks . | . . . Terminals . | . . . Fabricators . | . . . Repair Stations . | . . . Recycling Units . | . . . Scanalyzers . | . . . Garrison Access . | . . . Data Cores Recovered . | . . . Used . | . . . Hacking Detections 1 | . . 1 Full Trace Events 1 | . . 1 Feedback Events . | . . . Feedback Blocked . | . . . Robot Schematics Acquired . | . . . Robots Built . | . . . Authchips . | . . . Time . | . . . Total Robot Build Rating . | . . . Part Schematics Acquired . | . . . Parts Built . | . . . Authchips . | . . . Time . | . . . Total Part Build Rating . | . . . Parts Repaired 1 | . . 1 Time 26 | . . 26 Parts Recycled . | . . . Recycled Matter . | . . . Retrieved Matter . | . . . Retrieved Components . | . . . Parts Scanalyzed . | . . . Part Schematics Acquired . | . . . Parts Damaged . | . . . Bothacking | -11 -10 -9 ------------ Run | Yrd Mat Mat Used RIF Installer . | . . . Robots Hacked . | . . . Non-combat . | . . . Combat . | . . . Robot Hacks Applied . | . . . Relay Couplers Released . | . . . Fabnet Peak Effective % . | . . . Robots Rewired . | . . . Allies Hacked . | . . . Hacks Repelled . | . . . Allies | -11 -10 -9 -------- Run | Yrd Mat Mat Total Allies . | . . . Largest Group . | . . . Highest-Rated Group . | . . . Highest-Rated Ally . | . . . Total Orders . | . . . Ally Attacks . | . . . Total Damage . | . . . Kills . | . . . Allies Corrupted . | . . . Allies Melted . | . . . Intel | -11 -10 -9 ------- Run | Yrd Mat Mat Active Infowar (turns) 917 | . 24 893 T.N.C. 917 | . 24 893 Robot Analysis Total . | . . . Derelict Logs Recovered . | . . . Drone Launches . | . . . Drone Recoveries . | . . . Exploration | -11 -10 -9 ------------- Run | Yrd Mat Mat Turns Passed 1176 | 80 203 893 Spaces Moved 698 | 73 203 422 Core 42 | 11 . 31 Treads . | . . . Legs 339 | . . 339 Wheels 317 | 62 203 52 Hover . | . . . Flight . | . . . Fastest Speed 50 | 50 90 80 Average Speed 135 | 83 90 166 Slowest Speed 250 | 90 90 250 Overloaded Moves . | . . . Propulsion Burnouts . | . . . Robots Hopped . | . . . Potential Cave-ins . | . . . Cave-ins Triggered . | . . . Exploration Rate (%) 17 | 4 23 26 Regions Visited 2 Branch Regions . Pre-discovered Areas . | . . . Known Exits Taken . | . . . Unknown Exits Taken 2 | 1 1 . Scrap Searched . | . . . Spaces Dug . | . . . Terrain Destroyed 34 | . . 34 Melee . | . . . Projectile . | . . . AOE 34 | . . 34 Terrain Rammed . | . . . Walls Destroyed . | . . . Machines Disabled . | . . . Actions | -11 -10 -9 --------- Run | Yrd Mat Mat Total 842 | 90 211 541 Wait 54 | . . 54 Move 696 | 72 202 422 Hop . | . . . Pick Up 17 | 9 2 6 Fast Attach . | . . . Attach 18 | 6 1 11 Detach 2 | . . 2 Swap . | . . . Drop 1 | 1 . . Fire 38 | 1 6 31 Melee 14 | . . 14 Ram 1 | 1 . . Kick 1 | . . 1 Crush . | . . . Escape Stasis . | . . . Rewire . | . . . Trap . | . . . Miscellaneous . | . . . Route ------- -11/Scrapyard -10/Materials (discovered 2 exits: *Mat / [*Min]) -9/Materials History --------- Turn | Location | Event 2 | -11/Scrapyard | Met Revision 17 13 | -11/Scrapyard | Discovered new exit (range 16) 81 | -11/Scrapyard | Entered Materials 138 | -10/Materials | Discovered new exit (range 11) 263 | -10/Materials | Discovered new exit (range 16) 284 | -10/Materials | Entered another Materials area 284 | -9/Materials | Evolved 2 slots: Utility x2 300 | -9/Materials | Build established: Mutant 409 | -9/Materials | Lost 4 parts (1p2n1w) 463 | -9/Materials | Repaired Med. Laser 764 | -9/Materials | Core integrity fell below 50% 791 | -9/Materials | Lost 3 parts (1p1n1u) 1177 | -9/Materials | Self-destructed Last Messages --------------- Y-45 Defender system terminally corrupted. Acquired 32 matter. Acquired 8 matter. Acquired Aluminum Leg. Acquired 18 matter. The unstable cave ceiling collapses. R-06 Scavenger collects Heat Sink. The unstable cave ceiling collapses. G-34 Mercenary suffers critical hit (Smash). Destroyed Aluminum Leg. G-34 Mercenary system corrupted by crushing effect. G-34 Mercenary system terminally corrupted. Acquired 2 matter. The unstable cave ceiling collapses. K-01 Serf collects debris. U-05 Engineer lays Concrete. U-05 Engineer works on Processing Tank. O-16 Technician: "IFF HANDSHAKE FAILED. SECURING TERMINAL." ALERT: Hostiles spotted, dispatching reinforcements to Terminal M002. K-01 Serf collects debris. Map ----- +----------------------------------------------------+ | ?????????????????????????????????????????????????? | | ?????????????????????????????????????????????????? | | ?????????????????????????????????????????????????? | | ?????????????????????????????????????????????????? | | ?????????????????????????????????????????????????? | | ?????????????????????????????????????????????????? | | ?????????????????????????????????????????????????? | | ?????????????????????????????????????????????????? | | ??????????????????????????????????????? ???????? | | ???a??????????????????????????????????? #??????? | | ??????????????????????????????????????# #??????? | | ??????????????????????????????????????# #??????? | | ??????????????????????????????????????+ #??????? | | ??????????????????????????????????????# #???+#?? | | ??????????????????????????????????????# #??? #?? | | ???????????????????????????????######## #??? #?? | | ???????????????????????????????# "" # #??# #?? | | ???????????????????????????????# ""S # #??# #?? | | ???????????????????????????????# "" # #??# #?? | | ???????????????????????????????# # #### #?# | | ???????????????###?????????????# !# #?# | | ??????????????? ???????????# # #?# | | ????????????????""" "T??###########+### ### | | ??????????????? """ # t # | | ??????????????? """ + / | | ??????????????? """ #@ k # | | ??????????????# ??# #######+### ###### # | | ??????????????#] ????# #???? ?# #????# # | | ?????????????# ??????#s #??? """?# #????# # | | ?????????a???###????????#s #??# """?# ######+# | | ????????????????????????# #??# """?# # | | ????????????????????????# #??# ?# # | | ????????????????????????#s #??# ?# # | | ????????????????????????# #??##?????### #### = | | ????????????????????????# #???????????# #??# | | ???????a????????????????# #???????????# #??# | | ????????????????????????#s +???????????# #??#### | | ??????????????????a?a??? #???????????# ###### | | ????????????????????????? #???????????# | | ????????????????????????? #???????????# ###### | | ?????????????????????????#+##???????????# ###### | | ????????????????????????????????????????# # T # | | ????????????????????????????????????????# #! + | | ????????????????????????????????????????# # # | | ????????????????????????????????????????# # = # | | ????????????????????????????????????????# # # | | ????????????????????????????????????????# # # | | ????????????????????????????????????????# # # | | ????????????????????????????????????????# # # | | ????????????????????????????????????????# # %+ | +----------------------------------------------------+ Best States ------------- Heat Dissipation 28 Energy Generation 10 Energy Capacity 125 Matter Stores 300 Matter Capacity 300 Sight Range 16 Terrain Scan Density 10 Armor Coverage 150 Evasion (%) 55 Item Schematics ----------------- None Robot Schematics ------------------ None Fabricated ------------ Nothing Repaired ---------- Med. Laser | 25% | -9/Materials Alien Tech Used ----------------- None Achievements -------------- None Challenges ------------ None Game ------ Seed BeamCloakParser Manual? 0 Play Time 00:08:52 Cumulative 10.2 hours Start 2025.05.11 @ 23:25:03 End 2025.05.11 @ 23:30:25 Sessions 1 Manual Loads 0 Difficulty Rogue Special Mode None Game No. 38 Rogue 38 Adventurer 0 Explorer 0 Win Type - Total 0 Types 0/0/0/0/0/0/0/0/0/0 Lore% 6 Gallery% 14 Achievement% 13 Wizard Run 0 Options --------- Layout 0 ASCII 0 Keyboard 0 Movement Arrows Keybinds 0 Fullscreen 1 Font 24/Smallcaps Map View 56x25 Zoom Use 100% Tactical HUD 0 Map Filters NONE Filters NONE Steam 1 RUN: 9f9b6bc4-84b7-4bd4-988e-b9f39b715574